[Event "Late-Titled-Tuesday-Blitz-January-16-2024"]
[Site "Chess.com"]
[Date "2024.01.16"]
[Round "1"]
[White "Nouali_Mohamed"]
[Black "C_K_G"]
[Result "1/2-1/2"]
[WhiteElo "2545"]
[BlackElo "2067"]
[TimeControl "180+1"]
[EndTime "14:08:41 PST"]
[Termination "Game drawn - insufficient material"]

1. e4 {[%clk 0:02:47.2]} 1... c5 {[%clk 0:02:58.2]} 2. Nf3 {[%clk 0:01:51.7]}
2... d6 {[%clk 0:02:56.5]} 3. d4 {[%clk 0:01:51.5]} 3... cxd4 {[%clk 0:02:56.3]}
4. Nxd4 {[%clk 0:01:52.4]} 4... Nf6 {[%clk 0:02:56.9]} 5. Nc3 {[%clk 0:01:53]}
5... a6 {[%clk 0:02:57.5]} 6. Bc4 {[%clk 0:01:53.6]} 6... e5 {[%clk 0:02:58.1]}
7. Nf5 {[%clk 0:01:53.8]} 7... Bxf5 {[%clk 0:02:57.5]} 8. exf5 {[%clk
0:01:54.7]} 8... Nbd7 {[%clk 0:02:57.6]} 9. g4 {[%clk 0:01:50.6]} 9... b5 {[%clk
0:02:57.4]} 10. Bb3 {[%clk 0:01:50.1]} 10... h6 {[%clk 0:02:54.7]} 11. Rg1
{[%clk 0:01:43.9]} 11... Qc7 {[%clk 0:02:45.5]} 12. Nd5 {[%clk 0:01:37]} 12...
Nxd5 {[%clk 0:02:44.7]} 13. Qxd5 {[%clk 0:01:37.9]} 13... Nb6 {[%clk 0:02:31.5]}
14. Qf3 {[%clk 0:01:27.6]} 14... Be7 {[%clk 0:02:25.9]} 15. Be3 {[%clk
0:01:25.6]} 15... Rc8 {[%clk 0:02:25.2]} 16. O-O-O {[%clk 0:01:19.9]} 16... Nc4
{[%clk 0:02:16.6]} 17. Kb1 {[%clk 0:01:09.1]} 17... a5 {[%clk 0:02:14.5]} 18.
Qd5 {[%clk 0:01:06.5]} 18... a4 {[%clk 0:02:07.9]} 19. Qxb5+ {[%clk 0:01:03.8]}
19... Kf8 {[%clk 0:02:00.1]} 20. Qxa4 {[%clk 0:00:54.5]} 20... Nxe3 {[%clk
0:01:55]} 21. fxe3 {[%clk 0:00:53.6]} 21... Kg8 {[%clk 0:01:51.7]} 22. Qb5
{[%clk 0:00:49.4]} 22... Bg5 {[%clk 0:01:45.2]} 23. e4 {[%clk 0:00:46.5]} 23...
Be3 {[%clk 0:01:31.3]} 24. Rg3 {[%clk 0:00:43.8]} 24... Bd4 {[%clk 0:01:27.4]}
25. Qd5 {[%clk 0:00:39.5]} 25... Rb8 {[%clk 0:01:10.5]} 26. h4 {[%clk
0:00:34.4]} 26... Kh7 {[%clk 0:00:55.4]} 27. g5 {[%clk 0:00:33.3]} 27... Rhf8
{[%clk 0:00:49.2]} 28. gxh6 {[%clk 0:00:27.6]} 28... Kxh6 {[%clk 0:00:48]} 29.
f6 {[%clk 0:00:17.4]} 29... g6 {[%clk 0:00:42.8]} 30. h5 {[%clk 0:00:16.7]}
30... g5 {[%clk 0:00:41.5]} 31. Rgd3 {[%clk 0:00:13.2]} 31... Rb6 {[%clk
0:00:37.3]} 32. Rxd4 {[%clk 0:00:12.5]} 32... exd4 {[%clk 0:00:36.6]} 33. Qxd4
{[%clk 0:00:12.1]} 33... Re8 {[%clk 0:00:30.8]} 34. a4 {[%clk 0:00:11.3]} 34...
Re5 {[%clk 0:00:29.6]} 35. Rf1 {[%clk 0:00:10.1]} 35... Qc5 {[%clk 0:00:25.3]}
36. Qd3 {[%clk 0:00:08.2]} 36... Rb4 {[%clk 0:00:20]} 37. Bxf7 {[%clk
0:00:06.4]} 37... Rd4 {[%clk 0:00:18.9]} 38. Qb3 {[%clk 0:00:03.8]} 38... Rb4
{[%clk 0:00:18.3]} 39. Qd3 {[%clk 0:00:04]} 39... Rxa4 {[%clk 0:00:17.3]} 40.
Bb3 {[%clk 0:00:03.7]} 40... Rd4 {[%clk 0:00:17.1]} 41. Qc3 {[%clk 0:00:02.8]}
41... Qxc3 {[%clk 0:00:16.4]} 42. bxc3 {[%clk 0:00:03.7]} 42... Rdxe4 {[%clk
0:00:16.8]} 43. f7 {[%clk 0:00:04.2]} 43... Re1+ {[%clk 0:00:17.2]} 44. Rxe1
{[%clk 0:00:04.6]} 44... Rxe1+ {[%clk 0:00:17.4]} 45. Kb2 {[%clk 0:00:04.7]}
45... Rf1 {[%clk 0:00:18.3]} 46. Be6 {[%clk 0:00:03.6]} 46... Kxh5 {[%clk
0:00:17.9]} 47. c4 {[%clk 0:00:03.9]} 47... g4 {[%clk 0:00:18]} 48. Kc3 {[%clk
0:00:03.7]} 48... g3 {[%clk 0:00:18.2]} 49. Bd5 {[%clk 0:00:04.6]} 49... Kh4
{[%clk 0:00:17.3]} 50. Kb4 {[%clk 0:00:04.3]} 50... Kh3 {[%clk 0:00:17.2]} 51.
Kb5 {[%clk 0:00:04.6]} 51... g2 {[%clk 0:00:17.6]} 52. Bxg2+ {[%clk 0:00:05]}
52... Kxg2 {[%clk 0:00:17.8]} 53. Kc6 {[%clk 0:00:05.9]} 53... Rxf7 {[%clk
0:00:18.1]} 54. Kxd6 {[%clk 0:00:06.3]} 54... Kf3 {[%clk 0:00:14.8]} 55. c5
{[%clk 0:00:04.6]} 55... Ke4 {[%clk 0:00:14.8]} 56. c6 {[%clk 0:00:05.3]} 56...
Rf6+ {[%clk 0:00:15.1]} 57. Kc5 {[%clk 0:00:02.4]} 57... Rf7 {[%clk 0:00:13.3]}
58. Kd6 {[%clk 0:00:02.1]} 58... Rf6+ {[%clk 0:00:12.4]} 59. Kc5 {[%clk
0:00:02.5]} 59... Ke5 {[%clk 0:00:11.8]} 60. c7 {[%clk 0:00:02.9]} 60... Rf3
{[%clk 0:00:11.6]} 61. Kc6 {[%clk 0:00:03.8]} 61... Rc3+ {[%clk 0:00:11.4]} 62.
Kb7 {[%clk 0:00:04.4]} 62... Rxc2 {[%clk 0:00:10.2]} 63. c8=Q {[%clk 0:00:04.8]}
63... Rxc8 {[%clk 0:00:11.1]} 64. Kxc8 {[%clk 0:00:05.3]} 1/2-1/2

[Event "Late-Titled-Tuesday-Blitz-January-16-2024"]
[Site "Chess.com"]
[Date "2024.01.16"]
[Round "1"]
[White "GiorgianBarbosa"]
[Black "lucliasco"]
[Result "0-1"]
[WhiteElo "2481"]
[BlackElo "2893"]
[TimeControl "180+1"]
[EndTime "14:08:50 PST"]
[Termination "lucliasco won by resignation"]

1. c4 {[%clk 0:02:59.8]} 1... e5 {[%clk 0:02:59.2]} 2. g3 {[%clk 0:03:00.7]}
2... Nf6 {[%clk 0:02:58.4]} 3. Bg2 {[%clk 0:02:56.2]} 3... d5 {[%clk 0:02:56.1]}
4. cxd5 {[%clk 0:02:55.7]} 4... Nxd5 {[%clk 0:02:57]} 5. Nf3 {[%clk 0:02:55.9]}
5... Nc6 {[%clk 0:02:56.6]} 6. d4 {[%clk 0:02:41.6]} 6... Bb4+ {[%clk
0:02:52.3]} 7. Bd2 {[%clk 0:02:16.7]} 7... e4 {[%clk 0:02:45.9]} 8. Ne5 {[%clk
0:02:05.9]} 8... e3 {[%clk 0:02:13.5]} 9. Bxb4 {[%clk 0:01:48.7]} 9... exf2+
{[%clk 0:02:01.5]} 10. Kxf2 {[%clk 0:01:49.6]} 10... Ndxb4 {[%clk 0:02:02.1]}
11. Nxc6 {[%clk 0:01:47.4]} 11... Nxc6 {[%clk 0:02:02.3]} 12. e3 {[%clk
0:01:42]} 12... O-O {[%clk 0:02:01.3]} 13. Nc3 {[%clk 0:01:35.7]} 13... Re8
{[%clk 0:01:57.2]} 14. Qf3 {[%clk 0:01:31]} 14... Nxd4 {[%clk 0:01:48.3]} 15.
exd4 {[%clk 0:01:14.2]} 15... Qxd4+ {[%clk 0:01:49.2]} 16. Kf1 {[%clk
0:01:14.6]} 16... Bg4 {[%clk 0:01:35.3]} 17. Qf2 {[%clk 0:01:13.7]} 17... Qb4
{[%clk 0:01:21.2]} 18. h3 {[%clk 0:01:09.2]} 18... Be6 {[%clk 0:01:14]} 19. Kg1
{[%clk 0:01:08.2]} 19... c6 {[%clk 0:01:12.7]} 20. Kh2 {[%clk 0:01:07]} 20...
Rad8 {[%clk 0:01:10.2]} 21. Rad1 {[%clk 0:01:06.7]} 21... h5 {[%clk 0:01:08.7]}
22. Rxd8 {[%clk 0:01:05]} 22... Rxd8 {[%clk 0:01:09.6]} 23. Rd1 {[%clk
0:01:03.9]} 23... Rxd1 {[%clk 0:01:06]} 24. Nxd1 {[%clk 0:01:04.8]} 24... Bxa2
{[%clk 0:01:05.5]} 25. Qxa7 {[%clk 0:01:01.6]} 25... Be6 {[%clk 0:01:01.1]} 26.
Qb8+ {[%clk 0:01:00.6]} 26... Kh7 {[%clk 0:01:00.8]} 27. Qf4 {[%clk 0:00:59.4]}
27... Qb3 {[%clk 0:00:54.8]} 28. Qd2 {[%clk 0:00:52.9]} 28... g6 {[%clk
0:00:51.4]} 29. Nc3 {[%clk 0:00:50.1]} 29... Qb4 {[%clk 0:00:51.1]} 30. Ne4
{[%clk 0:00:48]} 30... Qxd2 {[%clk 0:00:43]} 31. Nxd2 {[%clk 0:00:48.9]} 31...
Kg7 {[%clk 0:00:43.5]} 32. Bf3 {[%clk 0:00:40.3]} 32... Kf6 {[%clk 0:00:43.6]}
33. Kg2 {[%clk 0:00:40.7]} 33... Ke5 {[%clk 0:00:44.2]} 34. Kf2 {[%clk 0:00:41]}
34... Bxh3 {[%clk 0:00:42.1]} 35. Ke3 {[%clk 0:00:35.2]} 35... Be6 {[%clk
0:00:41.3]} 36. Be2 {[%clk 0:00:33.2]} 36... b5 {[%clk 0:00:40.1]} 37. Bd3
{[%clk 0:00:27.6]} 37... Bd7 {[%clk 0:00:36.6]} 38. Nf3+ {[%clk 0:00:27.7]}
38... Kd6 {[%clk 0:00:36.2]} 39. Ng5 {[%clk 0:00:24.9]} 39... Be8 {[%clk
0:00:34.8]} 40. Kf4 {[%clk 0:00:22.3]} 40... f6 {[%clk 0:00:31.8]} 41. Ne4+
{[%clk 0:00:21.2]} 41... Ke7 {[%clk 0:00:32.3]} 42. Nc5 {[%clk 0:00:19.7]} 42...
Bf7 {[%clk 0:00:28]} 43. b4 {[%clk 0:00:19.9]} 43... g5+ {[%clk 0:00:23.1]} 44.
Kf5 {[%clk 0:00:14.7]} 44... Bg8 {[%clk 0:00:23.1]} 45. Kg6 {[%clk 0:00:10.1]}
45... h4 {[%clk 0:00:21.9]} 46. gxh4 {[%clk 0:00:08.8]} 46... gxh4 {[%clk
0:00:22.8]} 47. Kg7 {[%clk 0:00:08.8]} 47... Bd5 {[%clk 0:00:19.6]} 48. Bf5
{[%clk 0:00:08.7]} 48... Bg2 {[%clk 0:00:19.6]} 49. Kg6 {[%clk 0:00:06.5]} 49...
h3 {[%clk 0:00:19]} 50. Bxh3 {[%clk 0:00:07.1]} 50... Bxh3 {[%clk 0:00:19]} 51.
Kh5 {[%clk 0:00:08]} 51... Bg2 {[%clk 0:00:14.1]} 52. Kg4 {[%clk 0:00:07.4]}
52... Bd5 {[%clk 0:00:13.4]} 53. Kf5 {[%clk 0:00:07.8]} 53... Ba2 {[%clk
0:00:13]} 54. Ke4 {[%clk 0:00:06.1]} 54... Bb1+ {[%clk 0:00:13.4]} 55. Kd4
{[%clk 0:00:04.1]} 55... Kd6 {[%clk 0:00:14]} 56. Nb3 {[%clk 0:00:03.6]} 56...
f5 {[%clk 0:00:12.3]} 57. Nd2 {[%clk 0:00:03.4]} 57... Bc2 {[%clk 0:00:12.8]}
58. Nf3 {[%clk 0:00:02.9]} 58... Be4 {[%clk 0:00:13.1]} 59. Ne5 {[%clk
0:00:03.8]} 59... Bd5 {[%clk 0:00:13.3]} 60. Ng6 {[%clk 0:00:03.8]} 60... Kd7
{[%clk 0:00:12]} 61. Nf4 {[%clk 0:00:04.7]} 61... Kd6 {[%clk 0:00:12.6]} 62. Nd3
{[%clk 0:00:04.4]} 62... Bf7 {[%clk 0:00:11.7]} 63. Nf4 {[%clk 0:00:04.7]} 63...
Bg8 {[%clk 0:00:10.6]} 64. Nd3 {[%clk 0:00:04.9]} 64... Ke6 {[%clk 0:00:10.2]}
65. Nf4+ {[%clk 0:00:04.9]} 65... Kf6 {[%clk 0:00:10.6]} 66. Kc5 {[%clk
0:00:05.1]} 66... Bd5 {[%clk 0:00:10.2]} 67. Nxd5+ {[%clk 0:00:04.3]} 67... cxd5
{[%clk 0:00:11]} 68. Kxb5 {[%clk 0:00:04.5]} 68... f4 {[%clk 0:00:10.4]} 69. Kc5
{[%clk 0:00:04.4]} 69... f3 {[%clk 0:00:10.9]} 70. b5 {[%clk 0:00:05.3]} 70...
f2 {[%clk 0:00:11.5]} 71. b6 {[%clk 0:00:06.2]} 71... f1=Q {[%clk 0:00:12.2]}
72. b7 {[%clk 0:00:06.7]} 72... Qb1 {[%clk 0:00:12.3]} 73. Kc6 {[%clk 0:00:07]}
73... d4 {[%clk 0:00:12.7]} 74. b8=Q {[%clk 0:00:07.4]} 74... Qxb8 {[%clk
0:00:11.9]} 0-1

[Event "Late-Titled-Tuesday-Blitz-January-16-2024"]
[Site "Chess.com"]
[Date "2024.01.16"]
[Round "1"]
[White "GP9isback23"]
[Black "CRObliterator"]
[Result "0-1"]
[WhiteElo "2626"]
[BlackElo "2348"]
[TimeControl "180+1"]
[EndTime "14:08:55 PST"]
[Termination "CRObliterator won on time"]

1. d4 {[%clk 0:02:57.3]} 1... Nf6 {[%clk 0:02:59.1]} 2. Nf3 {[%clk 0:02:56.9]}
2... e6 {[%clk 0:02:57.8]} 3. g3 {[%clk 0:02:56.2]} 3... b5 {[%clk 0:02:56.7]}
4. Bg2 {[%clk 0:02:56.4]} 4... d5 {[%clk 0:02:55.1]} 5. O-O {[%clk 0:02:55.4]}
5... Nbd7 {[%clk 0:02:53.5]} 6. b3 {[%clk 0:02:44.2]} 6... c5 {[%clk 0:02:50.3]}
7. dxc5 {[%clk 0:02:42.3]} 7... Bxc5 {[%clk 0:02:48.3]} 8. c4 {[%clk 0:02:42]}
8... bxc4 {[%clk 0:02:45.2]} 9. bxc4 {[%clk 0:02:42.1]} 9... O-O {[%clk
0:02:43.2]} 10. Nc3 {[%clk 0:02:38]} 10... Bb7 {[%clk 0:02:35.4]} 11. Nd2 {[%clk
0:02:32.9]} 11... Nb6 {[%clk 0:02:28.1]} 12. Nb3 {[%clk 0:02:25.5]} 12... Bb4
{[%clk 0:02:23.7]} 13. Qd4 {[%clk 0:02:05.3]} 13... Nxc4 {[%clk 0:02:09.4]} 14.
Bg5 {[%clk 0:02:03.6]} 14... h6 {[%clk 0:01:58.5]} 15. Bf4 {[%clk 0:01:59.8]}
15... Qb6 {[%clk 0:01:51]} 16. Qd3 {[%clk 0:01:51.1]} 16... Ba6 {[%clk
0:01:43.3]} 17. Rac1 {[%clk 0:01:37.5]} 17... Rac8 {[%clk 0:01:25.9]} 18. Nb1
{[%clk 0:01:11.1]} 18... Na3 {[%clk 0:01:17.7]} 19. Qd1 {[%clk 0:01:02.8]} 19...
Rxc1 {[%clk 0:01:12]} 20. Qxc1 {[%clk 0:01:01.3]} 20... Nxb1 {[%clk 0:01:01.9]}
21. Qxb1 {[%clk 0:01:01.4]} 21... Bxe2 {[%clk 0:00:57.5]} 22. Rc1 {[%clk
0:01:01.4]} 22... Ng4 {[%clk 0:00:37.9]} 23. Qc2 {[%clk 0:00:33.6]} 23... Qxf2+
{[%clk 0:00:32.5]} 24. Kh1 {[%clk 0:00:33.7]} 24... Bf3 {[%clk 0:00:20.5]} 25.
Qxf2 {[%clk 0:00:26.4]} 25... Nxf2+ {[%clk 0:00:21.4]} 26. Kg1 {[%clk
0:00:26.3]} 26... Bxg2 {[%clk 0:00:22]} 27. Kxf2 {[%clk 0:00:22.7]} 27... Be4
{[%clk 0:00:22.2]} 28. Rc7 {[%clk 0:00:21.4]} 28... a5 {[%clk 0:00:20.9]} 29.
Bd2 {[%clk 0:00:15.5]} 29... Bd6 {[%clk 0:00:18]} 30. Ra7 {[%clk 0:00:14]} 30...
Rb8 {[%clk 0:00:14]} 31. Rxa5 {[%clk 0:00:12.8]} 31... Bf8 {[%clk 0:00:13.3]}
32. Be3 {[%clk 0:00:12.2]} 32... g5 {[%clk 0:00:13.3]} 33. Bc5 {[%clk
0:00:11.9]} 33... Bxc5+ {[%clk 0:00:12.6]} 34. Rxc5 {[%clk 0:00:11.5]} 34... f5
{[%clk 0:00:11.9]} 35. Rc7 {[%clk 0:00:09.1]} 35... Ra8 {[%clk 0:00:11.5]} 36.
Nd4 {[%clk 0:00:08.9]} 36... Rxa2+ {[%clk 0:00:11.6]} 37. Ke3 {[%clk 0:00:09.2]}
37... Ra3+ {[%clk 0:00:11.6]} 38. Kf2 {[%clk 0:00:09.5]} 38... f4 {[%clk
0:00:11.8]} 39. Nxe6 {[%clk 0:00:09.3]} 39... Ra2+ {[%clk 0:00:11.3]} 40. Ke1
{[%clk 0:00:08]} 40... f3 {[%clk 0:00:11.5]} 41. Nd4 {[%clk 0:00:01.8]} 41...
f2+ {[%clk 0:00:10.8]} 42. Kf1 {[%clk 0:00:02.1]} 42... Bd3+ {[%clk 0:00:11.3]}
43. Ne2 {[%clk 0:00:01.9]} 43... Bxe2+ {[%clk 0:00:10.8]} 44. Kxf2 {[%clk
0:00:02.1]} 44... Bc4+ {[%clk 0:00:11.7]} 45. Ke3 {[%clk 0:00:02.2]} 45... Re2+
{[%clk 0:00:11.7]} 46. Kd4 {[%clk 0:00:03.1]} 46... Re4+ {[%clk 0:00:11.3]} 47.
Kc5 {[%clk 0:00:03.3]} 47... Re8 {[%clk 0:00:11.6]} 48. Kd6 {[%clk 0:00:04.2]}
48... Rf8 {[%clk 0:00:11.6]} 49. Ke6 {[%clk 0:00:04.2]} 49... d4+ {[%clk
0:00:11.8]} 50. Ke5 {[%clk 0:00:04.7]} 50... d3 {[%clk 0:00:12.1]} 51. Rxc4
{[%clk 0:00:04.6]} 51... Rd8 {[%clk 0:00:10.6]} 52. Rc1 {[%clk 0:00:04.1]} 52...
Kg7 {[%clk 0:00:10.8]} 53. Kf5 {[%clk 0:00:04]} 53... d2 {[%clk 0:00:10.7]} 54.
Rd1 {[%clk 0:00:04.3]} 54... Rd7 {[%clk 0:00:11.2]} 55. h4 {[%clk 0:00:04.3]}
55... gxh4 {[%clk 0:00:10.9]} 56. gxh4 {[%clk 0:00:05.2]} 56... Kf7 {[%clk
0:00:10.9]} 57. h5 {[%clk 0:00:04.6]} 57... Kg7 {[%clk 0:00:10.6]} 58. Ke5
{[%clk 0:00:04.8]} 58... Rd8 {[%clk 0:00:10.2]} 59. Kf5 {[%clk 0:00:04.9]} 59...
Rd7 {[%clk 0:00:08.5]} 60. Ke5 {[%clk 0:00:05.1]} 60... Kf8 {[%clk 0:00:08.5]}
61. Kf6 {[%clk 0:00:05]} 61... Rd6+ {[%clk 0:00:08.4]} 62. Ke5 {[%clk
0:00:04.7]} 62... Ke7 {[%clk 0:00:09]} 63. Kf5 {[%clk 0:00:04.9]} 63... Rd5+
{[%clk 0:00:09.1]} 64. Kg6 {[%clk 0:00:05.1]} 64... Rd6+ {[%clk 0:00:07.1]} 65.
Kg7 {[%clk 0:00:04.2]} 65... Kd7 {[%clk 0:00:06.8]} 66. Kh7 {[%clk 0:00:03.5]}
66... Kc6 {[%clk 0:00:07.1]} 67. Kg7 {[%clk 0:00:02.5]} 67... Kc5 {[%clk
0:00:07.4]} 68. Kh7 {[%clk 0:00:02.5]} 68... Kc4 {[%clk 0:00:07.8]} 69. Rxd2
{[%clk 0:00:01.6]} 69... Rxd2 {[%clk 0:00:07.2]} 70. Kxh6 {[%clk 0:00:02.5]}
70... Kd5 {[%clk 0:00:05.9]} 71. Kh7 {[%clk 0:00:02]} 71... Ke6 {[%clk
0:00:06.2]} 72. h6 {[%clk 0:00:02.4]} 72... Kf7 {[%clk 0:00:06.3]} 0-1

[Event "Late-Titled-Tuesday-Blitz-January-16-2024"]
[Site "Chess.com"]
[Date "2024.01.16"]
[Round "1"]
[White "Quattroporte300"]
[Black "GianmarcoVaR"]
[Result "0-1"]
[WhiteElo "2407"]
[BlackElo "2732"]
[TimeControl "180+1"]
[EndTime "14:08:56 PST"]
[Termination "GianmarcoVaR won on time"]

1. e4 {[%clk 0:03:00.9]} 1... c6 {[%clk 0:02:51.6]} 2. d4 {[%clk 0:02:59.6]}
2... d5 {[%clk 0:02:49.1]} 3. exd5 {[%clk 0:03:00.3]} 3... cxd5 {[%clk
0:02:49.3]} 4. Bd3 {[%clk 0:03:00.9]} 4... Nc6 {[%clk 0:02:49.6]} 5. c3 {[%clk
0:03:01.4]} 5... Nf6 {[%clk 0:02:49.4]} 6. Bf4 {[%clk 0:03:00.9]} 6... Bg4
{[%clk 0:02:47.8]} 7. Qb3 {[%clk 0:03:01.4]} 7... Qd7 {[%clk 0:02:47.1]} 8. Nd2
{[%clk 0:03:01.9]} 8... e6 {[%clk 0:02:47.3]} 9. Ngf3 {[%clk 0:03:02.4]} 9...
Bd6 {[%clk 0:02:47.8]} 10. Bxd6 {[%clk 0:03:02.6]} 10... Qxd6 {[%clk 0:02:48.4]}
11. O-O {[%clk 0:03:02.9]} 11... O-O {[%clk 0:02:48.3]} 12. Rae1 {[%clk
0:02:55.9]} 12... Rab8 {[%clk 0:02:31.3]} 13. Ne5 {[%clk 0:02:52.7]} 13... Bh5
{[%clk 0:02:31.5]} 14. f4 {[%clk 0:02:51]} 14... b5 {[%clk 0:02:28.6]} 15. a3
{[%clk 0:02:37.8]} 15... Na5 {[%clk 0:01:43.2]} 16. Qc2 {[%clk 0:02:23]} 16...
Nc4 {[%clk 0:01:43.6]} 17. Ndf3 {[%clk 0:02:14.7]} 17... a5 {[%clk 0:01:42.3]}
18. h3 {[%clk 0:02:08.9]} 18... Rfc8 {[%clk 0:01:26.5]} 19. g4 {[%clk
0:02:06.1]} 19... Bg6 {[%clk 0:01:26.9]} 20. Qf2 {[%clk 0:01:43.3]} 20... b4
{[%clk 0:01:21.4]} 21. axb4 {[%clk 0:01:24.4]} 21... axb4 {[%clk 0:01:22.3]} 22.
Bxg6 {[%clk 0:00:56.6]} 22... hxg6 {[%clk 0:01:20.2]} 23. Ng5 {[%clk 0:00:56.4]}
23... Rc7 {[%clk 0:00:52]} 24. Qh4 {[%clk 0:00:52.1]} 24... Nd2 {[%clk
0:00:40.4]} 25. Ngxf7 {[%clk 0:00:30.6]} 25... Rxf7 {[%clk 0:00:38.9]} 26. Qh8+
{[%clk 0:00:29.6]} 26... Kxh8 {[%clk 0:00:39.3]} 27. Nxf7+ {[%clk 0:00:30.1]}
27... Kg8 {[%clk 0:00:39.8]} 28. Nxd6 {[%clk 0:00:30.6]} 28... bxc3 {[%clk
0:00:37.4]} 29. bxc3 {[%clk 0:00:28]} 29... Nxf1 {[%clk 0:00:38]} 30. Kxf1
{[%clk 0:00:27.9]} 30... Rb3 {[%clk 0:00:32.5]} 31. Re3 {[%clk 0:00:17.4]} 31...
Kf8 {[%clk 0:00:33]} 32. Rxe6 {[%clk 0:00:11.6]} 32... Rb1+ {[%clk 0:00:10]} 33.
Kf2 {[%clk 0:00:11.4]} 33... Rb2+ {[%clk 0:00:10.9]} 34. Kf3 {[%clk 0:00:09.5]}
34... Kg8 {[%clk 0:00:11]} 35. Re3 {[%clk 0:00:06.7]} 35... Rc2 {[%clk 0:00:10]}
36. g5 {[%clk 0:00:06.5]} 36... Nd7 {[%clk 0:00:02.1]} 37. Re8+ {[%clk 0:00:06]}
37... Nf8 {[%clk 0:00:02.6]} 38. Rc8 {[%clk 0:00:05.6]} 38... Rd2 {[%clk
0:00:01.9]} 39. Ke3 {[%clk 0:00:04.5]} 39... Rh2 {[%clk 0:00:02.1]} 40. f5
{[%clk 0:00:03.9]} 40... Rxh3+ {[%clk 0:00:03]} 41. Kf4 {[%clk 0:00:04.5]} 41...
gxf5 {[%clk 0:00:02.7]} 42. Nxf5 {[%clk 0:00:04.1]} 42... Kf7 {[%clk 0:00:02.5]}
43. Nd6+ {[%clk 0:00:03.8]} 43... Ke7 {[%clk 0:00:02.6]} 44. Nf5+ {[%clk
0:00:04.1]} 44... Kf7 {[%clk 0:00:02.6]} 45. Rc7+ {[%clk 0:00:04]} 45... Ke8
{[%clk 0:00:02.8]} 46. Nxg7+ {[%clk 0:00:03.4]} 46... Kd8 {[%clk 0:00:03.4]} 47.
Rf7 {[%clk 0:00:02.3]} 47... Ng6+ {[%clk 0:00:01.9]} 48. Kg4 {[%clk 0:00:01.8]}
48... Rxc3 {[%clk 0:00:01.8]} 49. Kf5 {[%clk 0:00:01.6]} 49... Ne7+ {[%clk
0:00:02]} 50. Kf6 {[%clk 0:00:01.4]} 50... Rf3+ {[%clk 0:00:01.8]} 51. Ke6
{[%clk 0:00:02.2]} 51... Re3+ {[%clk 0:00:01.9]} 52. Kd6 {[%clk 0:00:02.3]}
52... Nc8+ {[%clk 0:00:02.3]} 53. Kxd5 {[%clk 0:00:02.2]} 53... Rg3 {[%clk
0:00:03]} 54. Ne6+ {[%clk 0:00:02.1]} 54... Ke8 {[%clk 0:00:03.7]} 55. Rf8+
{[%clk 0:00:02.7]} 55... Kd7 {[%clk 0:00:03.9]} 56. Rf7+ {[%clk 0:00:02.7]}
56... Ne7+ {[%clk 0:00:04.6]} 57. Ke5 {[%clk 0:00:02.6]} 57... Re3+ {[%clk
0:00:05.4]} 58. Kf4 {[%clk 0:00:02.8]} 58... Rxe6 {[%clk 0:00:05.4]} 59. Rf6
{[%clk 0:00:03.3]} 59... Re1 {[%clk 0:00:05.3]} 60. Rh6 {[%clk 0:00:02.8]} 60...
Rf1+ {[%clk 0:00:05.5]} 61. Kg4 {[%clk 0:00:03.1]} 61... Rg1+ {[%clk 0:00:05.7]}
62. Kf4 {[%clk 0:00:02.4]} 62... Ke8 {[%clk 0:00:05.1]} 63. Re6 {[%clk 0:00:02]}
63... Kf7 {[%clk 0:00:05.1]} 64. Re2 {[%clk 0:00:02.2]} 64... Ng6+ {[%clk
0:00:04]} 65. Kf5 {[%clk 0:00:02.2]} 65... Ne7+ {[%clk 0:00:04.6]} 66. Ke4
{[%clk 0:00:02.3]} 66... Rxg5 {[%clk 0:00:04.6]} 67. Rf2+ {[%clk 0:00:02.6]}
67... Ke6 {[%clk 0:00:04.9]} 68. Rf4 {[%clk 0:00:02.1]} 68... Nd5 {[%clk
0:00:04.7]} 69. Rf1 {[%clk 0:00:02.8]} 69... Rg4+ {[%clk 0:00:04.8]} 70. Kd3
{[%clk 0:00:03.4]} 70... Rg3+ {[%clk 0:00:05.4]} 71. Kd2 {[%clk 0:00:03.1]}
71... Rg2+ {[%clk 0:00:05.5]} 72. Kd3 {[%clk 0:00:02.7]} 72... Rg3+ {[%clk
0:00:06.1]} 73. Kd2 {[%clk 0:00:02.8]} 73... Nf6 {[%clk 0:00:06.8]} 74. Rf2
{[%clk 0:00:01.7]} 74... Ne4+ {[%clk 0:00:06.8]} 75. Ke2 {[%clk 0:00:02.4]}
75... Nxf2 {[%clk 0:00:07.7]} 0-1